fUSD/lending_fUSD_20241020
["ID","MTS","AMOUNT","RATE_DAILY","PERIOD"]
[340519299,1729404668420,-500.0,0.00024931,2]
[340519300,1729404668429,-500.0,0.00024931,2]
[340519301,1729404668439,-500.0,0.00024931,2]
[340519302,1729404668448,-500.0,0.00024931,2]
[340519303,1729404668458,-540.66385296,0.00024931,2]
[340519304,1729404668467,-500.0,0.00024931,2]
[340519305,1729404668476,-549.10513665,0.00024931,2]
[340519306,1729404668486,-600.58,0.00024931,2]
[340519307,1729404668495,-500.0,0.00024931,2]
[340519308,1729404668504,-600.58,0.00024931,2]
[340519309,1729404668513,-500.0,0.00024931,2]
[340519310,1729404668522,-600.58,0.00024931,2]
[340519311,1729404668532,-500.0,0.00024931,2]
[340519312,1729404668541,-600.58,0.00024931,2]
[340519313,1729404668551,-500.0,0.00024931,2]
[340519314,1729404668562,-600.58,0.00024931,2]
[340519315,1729404668571,-600.58,0.00024931,2]
[340519316,1729404668581,-528.49652468,0.00024931,2]
[340519317,1729404668591,-500.0,0.00024931,2]
[340519318,1729404668601,-600.58,0.00024931,2]
[340519319,1729404668612,-541.06689564,0.00024931,2]
[340519320,1729404668621,-600.58,0.00024931,2]
[340519321,1729404668632,-500.0,0.00024931,2]
[340519322,1729404668645,-600.58,0.00024931,2]
[340519323,1729404668655,-600.58,0.00024931,2]
[340519324,1729404668665,-500.0,0.00024931,2]
[340519325,1729404668675,-600.58,0.00024931,2]
[340519326,1729404668685,-500.0,0.00024931,2]
[340519327,1729404668696,-600.58,0.00024931,2]
[340519328,1729404668705,-500.0,0.00024931,2]
[340519329,1729404668715,-600.58,0.00024931,2]
[340519330,1729404668724,-500.0,0.00024931,2]
[340519331,1729404668734,-500.0,0.00024931,2]
[340519332,1729404668743,-600.58,0.00024931,2]
[340519333,1729404668753,-500.0,0.00024931,2]
[340519334,1729404668762,-500.0,0.00024931,2]
[340519335,1729404668771,-600.58,0.00024931,2]
[340519336,1729404668781,-500.0,0.00024931,2]
[340519337,1729404668790,-500.0,0.00024931,2]
[340519338,1729404668800,-500.0,0.00024931,2]
[340519339,1729404668811,-600.58,0.00024931,2]
[340519340,1729404668820,-500.0,0.00024931,2]
[340519341,1729404668830,-500.0,0.00024931,2]
[340519342,1729404668839,-500.0,0.00024931,2]
[340519343,1729404668848,-600.58,0.00024931,2]
[340519344,1729404668857,-500.0,0.00024931,2]
[340519345,1729404668866,-534.16525708,0.00024931,2]
[340519346,1729404668875,-500.0,0.00024931,2]
[340519347,1729404668884,-600.58,0.00024931,2]
[340519348,1729404668894,-500.0,0.00024931,2]
[340519349,1729404668903,-500.0,0.00024931,2]
[340519350,1729404668913,-600.58,0.00024931,2]
[340519351,1729404668923,-210.22972684,0.00024931,2]
[340519352,1729404668932,-500.0,0.00024931,2]
[340519353,1729404668942,-600.58,0.00024931,2]
[340519354,1729404668952,-500.0,0.00024931,2]
[340519355,1729404668962,-600.58,0.00024931,2]
[340519356,1729404668972,-600.58,0.00024931,2]
[340519357,1729404668982,-500.0,0.00024931,2]
[340519358,1729404668991,-600.58,0.00024931,2]
[340519359,1729404669001,-600.79330174,0.00024931,2]
[340519360,1729404669010,-500.0,0.00024931,2]
[340519361,1729404669020,-500.0,0.00024931,2]
[340519362,1729404669029,-500.0,0.00024931,2]
[340519363,1729404669038,-500.0,0.00024931,2]
[340519364,1729404669047,-500.0,0.00024931,2]
[340519365,1729404669056,-500.0,0.00024931,2]
[340519366,1729404669065,-500.0,0.00024931,2]
[340519367,1729404669074,-500.0,0.00024931,2]
[340519368,1729404669083,-500.0,0.00024931,2]
[340519369,1729404669092,-500.0,0.00024931,2]
[340519370,1729404669101,-500.0,0.00024931,2]
[340519371,1729404669110,-500.0,0.00024931,2]
[340519372,1729404669119,-500.0,0.00024931,2]
[340519373,1729404669128,-278.43762483,0.00024931,2]
[340519374,1729404669137,-533.56297781,0.00024931,2]
[340519375,1729404669146,-500.0,0.00024931,2]
[340519376,1729404669155,-500.0,0.00024931,2]
[340519377,1729404669164,-500.0,0.00024931,2]
[340519378,1729404669173,-500.0,0.00024931,2]
[340519379,1729404669182,-500.0,0.00024931,2]
[340519380,1729404669191,-500.0,0.00024931,2]
[340519381,1729404669201,-500.0,0.00024931,2]
[340519382,1729404669210,-500.0,0.00024931,2]
[340519383,1729404669219,-500.0,0.00024931,2]
[340519384,1729404669228,-500.0,0.00024931,2]
[340519385,1729404669237,-500.0,0.00024931,2]
[340519386,1729404669246,-500.0,0.00024931,2]
[340519387,1729404669254,-500.0,0.00024931,2]
[340519388,1729404669263,-500.0,0.00024931,2]
[340519389,1729404669275,-500.0,0.00024931,2]
[340519390,1729404669284,-500.0,0.00024931,2]
[340519391,1729404669301,-519.7084846,0.00024931,2]
[340519392,1729404669310,-500.0,0.00024931,2]
[340519393,1729404669318,-500.0,0.00024931,2]
[340519394,1729404669327,-500.0,0.00024931,2]
[340519395,1729404669336,-628.95679174,0.00024931,2]
[340519396,1729404669345,-500.0,0.00024931,2]
[340519397,1729404669354,-537.07961206,0.00024931,2]
[340519398,1729404669363,-500.0,0.00024931,2]
[340519399,1729404669372,-500.0,0.00024931,2]
[340519400,1729404669381,-500.0,0.00024931,2]
[340519401,1729404669390,-500.0,0.00024931,2]
[340519402,1729404669399,-500.0,0.00024931,2]
[340519403,1729404669408,-408.78509021,0.00024931,2]
[340519404,1729404669417,-500.0,0.00024931,2]
[340519405,1729404669426,-1056.88,0.00024931,2]
[340519406,1729404669434,-500.0,0.00024931,2]
[340519407,1729404669443,-1056.88,0.00024931,2]
[340519408,1729404669452,-500.0,0.00024931,2]
[340519409,1729404669462,-1056.88,0.00024931,2]
[340519410,1729404669471,-500.0,0.00024931,2]
[340519411,1729404669480,-1056.88,0.00024931,2]
[340519412,1729404669489,-536.78583328,0.00024931,2]
[340519413,1729404669499,-1056.88,0.00024931,2]
[340519414,1729404669508,-1056.88,0.00024931,2]
[340519415,1729404669519,-1056.88,0.00024931,2]
[340519416,1729404669528,-1261.34,0.00024931,2]
[340519417,1729404669537,-1056.88,0.00024931,2]
[340519418,1729404669545,-1261.34,0.00024931,2]
[340519419,1729404669554,-1056.88,0.00024931,2]
[340519420,1729404669563,-1056.88,0.00024931,2]
[340519421,1729404669572,-1261.34,0.00024931,2]
[340519422,1729404669580,-1261.34,0.00024931,2]
[340519423,1729404669589,-1056.88,0.00024931,2]
[340519424,1729404669598,-1261.34,0.00024931,2]
[340519425,1729404669608,-1056.88,0.00024931,2]
[340519426,1729404669619,-500.0,0.00024931,2]
[340519427,1729404669629,-1056.88,0.00024931,2]
[340519428,1729404669638,-1261.34,0.00024931,2]
[340519429,1729404669652,-500.0,0.00024931,2]
[340519430,1729404669661,-1056.88,0.00024931,2]
[340519431,1729404669671,-1261.34,0.00024931,2]
[340519432,1729404669679,-500.0,0.00024931,2]
[340519433,1729404669689,-1056.88,0.00024931,2]
[340519434,1729404669699,-500.0,0.00024931,2]
[340519435,1729404669708,-1261.34,0.00024931,2]
[340519436,1729404669717,-523.27526779,0.00024931,2]
[340519437,1729404669728,-1056.88,0.00024931,2]
[340519438,1729404669737,-500.0,0.00024931,2]
[340519439,1729404669746,-1261.34,0.00024931,2]
[340519440,1729404669755,-179.47216316,0.00024931,2]
[340519441,1729404669764,-500.0,0.00024931,2]
[340519442,1729404669776,-1056.88,0.00024931,2]
[340519443,1729404669785,-1261.34,0.00024931,2]
[340519444,1729404669795,-500.0,0.00024931,2]
[340519445,1729404669804,-1261.34,0.00024931,2]
[340519446,1729404669813,-1056.88,0.00024931,2]
[340519447,1729404669822,-500.0,0.00024931,2]
[340519448,1729404669832,-1261.34,0.00024931,2]
[340519449,1729404669841,-1056.88,0.00024931,2]
[340519450,1729404669850,-500.0,0.00024931,2]
[340519451,1729404669859,-1261.34,0.00024931,2]
[340519452,1729404669868,-1056.88,0.00024931,2]
[340519453,1729404669877,-500.0,0.00024931,2]
[340519454,1729404669886,-1261.34,0.00024931,2]
[340519455,1729404669896,-1056.88,0.00024931,2]
[340519456,1729404669906,-508.49907097,0.00024931,2]
[340519457,1729404669915,-500.0,0.00024931,2]
[340519458,1729404669925,-1261.34,0.00024931,2]
[340519459,1729404669934,-500.0,0.00024931,2]
[340519460,1729404669943,-500.0,0.00024931,2]
[340519461,1729404669953,-500.0,0.00024931,2]
[340519462,1729404670079,-1261.34,0.00024931,2]
[340519463,1729404670088,-1056.88,0.00024931,2]
[340519464,1729404670098,-500.0,0.00024931,2]
[340519465,1729404670107,-500.0,0.00024931,2]
[340519466,1729404670116,-179.99353988,0.00024931,2]
[340519467,1729404670125,-500.0,0.00024931,2]
[340519468,1729404670135,-1056.88,0.00024931,2]
[340519469,1729404670144,-1261.34,0.00024931,2]
[340519470,1729404670153,-500.0,0.00024931,2]
[340519471,1729404670162,-500.0,0.00024931,2]
[340519472,1729404670172,-1056.92861004,0.00024931,2]
[340519473,1729404670183,-1261.34,0.00024931,2]
[340519474,1729404670193,-500.0,0.00024931,2]
[340519475,1729404670204,-500.0,0.00024931,2]
[340519476,1729404670216,-1261.34,0.00024931,2]
[340519477,1729404670226,-533.48051188,0.00024931,2]
[340519478,1729404670237,-539.99642685,0.00024931,2]
[340519479,1729404670248,-507.06738858,0.00024931,2]
[340519480,1729404670258,-500.0,0.00024931,2]
[340519481,1729404670268,-500.0,0.00024931,2]
[340519482,1729404670277,-500.0,0.00024931,2]
[340519483,1729404670286,-512.81149432,0.00024931,2]
[340519484,1729404670295,-500.0,0.00024931,2]
[340519485,1729404670306,-500.0,0.00024931,2]
[340519486,1729404670315,-521.12648622,0.00024931,2]
[340519487,1729404670324,-659.14,0.00024931,2]
[340519488,1729404670334,-659.14,0.00024931,2]
[340519489,1729404670343,-688.41,0.00024931,2]
[340519490,1729404670353,-659.14,0.00024931,2]
[340519491,1729404670364,-688.41,0.00024931,2]
[340519492,1729404670373,-500.0,0.00024931,2]
[340519493,1729404670383,-500.0,0.00024931,2]
[340519494,1729404670394,-659.14,0.00024931,2]
[340519495,1729404670405,-688.41,0.00024931,2]
[340519496,1729404670415,-500.0,0.00024931,2]
[340519497,1729404670427,-500.0,0.00024931,2]
[340519498,1729404670439,-540.98773445,0.00024931,2]
[340519499,1729404670449,-659.14,0.00024931,2]
[340519500,1729404670459,-500.0,0.00024931,2]
[340519501,1729404670468,-441.81473644,0.00024931,2]
[340519502,1729404671649,-58.18526356,0.00024931,2]
[340519503,1729404671658,-659.14,0.00024931,2]
[340519504,1729404671667,-688.41,0.00024931,2]
[340519505,1729404671677,-500.0,0.00024931,2]
[340519506,1729404671686,-522.30969778,0.00024931,2]
[340519507,1729404671697,-659.14,0.00024931,2]
[340519508,1729404671707,-688.41,0.00024931,2]
[340519509,1729404671718,-500.0,0.00024931,2]
[340519510,1729404671727,-659.14,0.00024931,2]
[340519511,1729404671737,-255.90874784,0.00024931,2]
[340519512,1729404671747,-659.14,0.00024931,2]
[340519513,1729404671757,-688.41,0.00024931,2]
[340519514,1729404671768,-659.14,0.00024931,2]
[340519515,1729404671777,-349.92842748,0.00024931,2]
[340519516,1729404671793,-338.48157252,0.00024931,2]
[340519517,1729404671802,-504.4,0.00024931,2]
[340519518,1729404671812,-659.14,0.00024931,2]
[340519519,1729404671821,-688.41,0.00024931,2]
[340519520,1729404671832,-1407.14,0.00024931,2]
[340519521,1729404671842,-500.0,0.00024931,2]
[340519522,1729404671851,-504.4,0.00024931,2]
[340519523,1729404671863,-1407.14,0.00024931,2]
[340519524,1729404671872,-500.0,0.00024931,2]
[340519525,1729404671882,-688.41,0.00024931,2]
[340519526,1729404671893,-504.4,0.00024931,2]
[340519527,1729404671903,-500.0,0.00024931,2]
[340519528,1729404671913,-1407.14,0.00024931,2]
[340519529,1729404671923,-500.0,0.00024931,2]
[340519530,1729404671933,-688.41,0.00024931,2]
[340519531,1729404671943,-500.0,0.00024931,2]
[340519532,1729404671953,-659.14,0.00024931,2]
[340519533,1729404671962,-504.4,0.00024931,2]
[340519534,1729404671972,-1407.14,0.00024931,2]
[340519535,1729404671981,-688.41,0.00024931,2]
[340519536,1729404671990,-500.0,0.00024931,2]
[340519537,1729404671999,-659.14,0.00024931,2]
[340519538,1729404672008,-504.4,0.00024931,2]
[340519539,1729404672018,-1407.14,0.00024931,2]
[340519540,1729404672027,-688.41,0.00024931,2]
[340519541,1729404672037,-504.4,0.00024931,2]
[340519542,1729404672047,-500.0,0.00024931,2]
[340519543,1729404672058,-378.06017533,0.00024931,2]
[340519544,1729404672078,-281.07982467,0.00024931,2]
[340519545,1729404672087,-75.26017533,0.00024931,2]
[340519546,1729404672099,-243.31239621,0.00024931,2]
[340519547,1729404672108,-98.12760379,0.00024931,2]
[340519548,1729404672119,-401.87239621,0.00024931,2]
[340519549,1729404672129,-1407.14,0.00024931,2]
[340519550,1729404672138,-688.41,0.00024931,2]
[340519551,1729404672147,-500.0,0.00024931,2]
[340519552,1729404672156,-504.4,0.00024931,2]
[340519553,1729404672165,-659.14,0.00024931,2]
[340519554,1729404672174,-500.0,0.00024931,2]
[340519555,1729404672184,-1407.14,0.00024931,2]
[340519556,1729404672193,-154.89563617,0.00024931,2]
[340519557,1729405136912,250.0,0.0001,2]
[340519558,1729405519306,681.21379504,9e-05,2]
[340519559,1729405529032,313.95751758,0.000101,2]
[340519560,1729405533942,230.15287469,0.0001,2]
[340519561,1729405553799,602.86000303,6.94e-05,2]
[340519562,1729405561024,161.41145537,9e-05,2]
[340519563,1729405618607,-3548.897172,0.00010904,2]
[340519564,1729405618630,-150.0,0.00010949,2]
[340519565,1729405618652,-170.32,0.00010959,2]
[340519566,1729405618674,-500.0,0.00010999,2]
[340519567,1729405618696,-228.3848419,0.00010999,2]
[340519568,1729405618722,-707167.38268006,0.00011,2]
[340519569,1729405637533,205.0,9.8e-05,2]
[340519570,1729405640221,-160.02019571,0.000119,2]
[340519571,1729405640241,-300.0,0.00012,2]
[340519572,1729405640260,-172.32534949,0.00012189,2]
[340519573,1729405640280,-150.0,0.000123,2]
[340519574,1729405640299,-350.0,0.00014,2]
[340519575,1729405640320,-160.0201957,0.00014067,2]
[340519576,1729405640341,-137.30510937,0.00015,2]
[340519577,1729405641549,246.49218862,0.000101,2]
[340519578,1729405649144,-150.0,0.00010898,2]
[340519579,1729405649167,-774.14593051,0.00015,2]
[340519581,1729405716826,212.27113586,0.0001,2]
[340519582,1729405717654,-781.8515,0.00010804,2]
[340519583,1729405717677,-26392.16214386,0.00011,2]
[340519584,1729405740611,-150.0,0.000123,2]
[340519585,1729405740636,-34430.97630561,0.0001289,2]
[340519586,1729405740662,-1006.54896012,0.00015,2]
[340519587,1729405740687,-400.0,0.00016,2]
[340519588,1729405740714,-160.0201957,0.00016233,2]
[340519589,1729405740738,-327.19,0.0001726,2]
[340519590,1729405740763,-167.41,0.000179,2]
[340519591,1729405740788,-450.0,0.00018,2]
[340519592,1729405740814,-160.0201957,0.000184,2]
[340519593,1729405740838,-681.19,0.000184,2]
[340519594,1729405740863,-499.99,0.0001847,2]
[340519595,1729405740888,-214.54,0.000185,7]
[340519596,1729405740912,-150.0,0.00019963,2]
[340519597,1729405740937,-179.33,0.00019963,2]
[340519607,1729405832136,-158.44,0.00010959,2]
[340519608,1729405832150,-150.0,0.000123,2]
[340519609,1729405832159,-200.6,0.000185,7]
[340519610,1729405832168,-340.31,0.00020511,2]
[340519611,1729405832178,-160.0201957,0.00020567,2]
[340519612,1729405832187,-160.9,0.00021918,2]
[340519613,1729405832197,-480.08,0.00022256,2]
[340519614,1729405832206,-394.47,0.00022282,2]
[340519615,1729405832215,-158.78864932,0.0002234,2]
[340519616,1729405832230,-237.10135068,0.0002234,2]
[340519617,1729405832239,-150.0,0.00022352,2]
[340519618,1729405832249,-200.0,0.00022369,2]
[340519619,1729405832258,-250.0,0.00022475,2]
[340519620,1729405832267,-250.0,0.00022484,2]
[340519621,1729405832278,-151.22,0.00022572,2]
[340519622,1729405832287,-250.0,0.00022679,2]
[340519623,1729405832296,-1000.0,0.00022695,2]
[340519624,1729405832305,-160.0201957,0.00022733,2]
[340519625,1729405832314,-340.31,0.00022775,2]
[340519626,1729405832323,-239.61,0.0002291,2]
[340519627,1729405832332,-176.45,0.0002312,2]
[340519628,1729405832341,-181.59,0.00023397,2]
[340519629,1729405832350,-2049.60938121,0.0002388,2]
[340519630,1729405832361,-1815.24288119,0.0002388,2]
[340519631,1729405832370,-286.56,0.00023942,2]
[340519632,1729405832379,-300.0,0.00023942,2]
[340519633,1729405832388,-286.56,0.00023948,2]
[340519634,1729405832398,-175.42,0.0002395,2]
[340519635,1729405832407,-286.56,0.00023954,2]
[340519636,1729405832416,-286.56,0.00023961,2]
[340519637,1729405832425,-286.56,0.00023967,2]
[340519638,1729405832434,-286.56,0.00023973,2]
[340519639,1729405832443,-286.56,0.0002398,2]
[340519640,1729405832452,-286.56,0.00023986,2]
[340519641,1729405832462,-286.56,0.00023992,2]
[340519642,1729405832470,-286.56,0.00023998,2]
[340519643,1729405832479,-24029.69157877,0.00024,12]
[340519644,1729405832517,-449.99,0.00024,12]
[340519645,1729405832533,-901.0,0.00024,12]
[340519646,1729405832555,-8175.8945928,0.00024,12]
[340519647,1729405832569,-249.52382843,0.00024,12]
[340519648,1729405832578,-286.56,0.00024005,2]
[340519649,1729405832587,-286.56,0.00024011,2]
[340519650,1729405832596,-286.56,0.00024017,2]
[340519651,1729405832605,-286.56,0.00024024,2]
[340519652,1729405832614,-286.56,0.0002403,2]
[340519653,1729405832623,-286.56,0.00024036,2]
[340519654,1729405832632,-286.56,0.00024043,2]
[340519655,1729405832642,-286.56,0.00024049,2]
[340519656,1729405832651,-286.56,0.00024055,2]
[340519657,1729405832660,-286.56,0.00024061,2]
[340519658,1729405832669,-152.0,0.00024294,3]
[340519659,1729405832679,-154.63222706,0.000245,2]
[340519660,1729405832688,-500.0,0.00024658,7]
[340519661,1729405832696,-172.32534949,0.00024721,2]
[340519662,1729405832706,-500.0,0.00024821,2]
[340519663,1729405832715,-1000.0,0.00024821,2]
[340519664,1729405832725,-214.2356,0.00024821,2]
[340519665,1729405832734,-259.369,0.00024821,8]
[340519666,1729405832743,-11398.2768,0.00024831,2]
[340519667,1729405832752,-3431.2352,0.00024831,2]
[340519668,1729405832761,-554.1069,0.00024831,2]
[340519669,1729405832771,-4843.3895,0.00024831,2]
[340519670,1729405832780,-496.1777,0.00024831,2]
[340519671,1729405832789,-151.41,0.00024877,30]
[340519672,1729405832798,-995.48,0.000249,2]
[340519673,1729405832807,-160.0201957,0.000249,2]
[340519674,1729405832816,-720.0,0.000249,2]
[340519675,1729405832825,-1000.0,0.000249,2]
[340519676,1729405832834,-183.47,0.0002492,3]
[340519677,1729405832843,-289.51899624,0.0002493,2]
[340519678,1729405832852,-5493.73929949,0.0002493,2]
[340519679,1729405832861,-595.9368279,0.0002493,2]
[340519680,1729405832870,-304.987639,0.0002493,2]
[340519681,1729405832881,-611.5235581,0.0002493,2]
[340519682,1729405832890,-31058.720148,0.0002493,2]
[340519683,1729405832902,-450.0,0.0002493,2]
[340519684,1729405832912,-2282.4939526,0.0002493,2]
[340519685,1729405832923,-5169.04311254,0.0002493,2]
[340519686,1729405838304,-560.50565751,0.0002493,2]
[340519687,1729405838449,-1150.61,0.0002493,2]
[340519709,1729405840382,-550.44,0.00024921,3]
[340519710,1729405840393,-1372.98,0.0002493,2]
[340519720,1729406103110,500.0,0.00010402,2]
[340519722,1729406217097,170.82,0.00011,60]
[340519723,1729406362630,200.0,0.00012,3]
[340519726,1729406450280,606.3,0.00026279,120]
[340519727,1729406513318,281.31924363,0.00012189,10]
[340519728,1729406831132,-170.32,0.00010959,2]
[340519729,1729406831154,-150.0,0.00012189,2]
[340519730,1729406831174,-822.82278382,0.000122,2]
[340519731,1729406845136,-342.89530065,0.000122,2]
[340519732,1729406850085,-271.26018513,0.000122,2]
[340519733,1729406943815,250.0,0.0001,2]
[340519745,1729407032291,-300.0,0.00012,2]
[340519746,1729407032300,-45.0,0.00012089,2]
[340519747,1729407032312,-3237.8596,0.00012089,2]
[340519748,1729407032321,-201.87791362,0.00012092,2]
[340519749,1729407032331,-150.0,0.00012191,2]
[340519750,1729407032339,-150.0,0.000123,2]
[340519751,1729407032348,-350.0,0.00014,2]
[340519752,1729407032358,-757.0,0.00015,2]
[340519753,1729407032367,-400.0,0.00016,2]
[340519754,1729407032376,-450.0,0.00018,2]
[340519755,1729407032385,-167.41,0.00018433,2]
[340519756,1729407032394,-500.0,0.0002,2]
[340519757,1729407032404,-471.85248639,0.000212,5]
[340519758,1729407032427,-900.14751361,0.000212,5]
[340519759,1729407032437,-811.79,0.00021334,2]
[340519760,1729407032446,-550.0,0.00022,2]
[340519761,1729407032455,-250.0,0.0002209,2]
[340519762,1729407032464,-359.79,0.00022811,2]
[340519763,1729407032474,-155.05,0.00022828,2]
[340519764,1729407032483,-279.8,0.00022967,2]
[340519765,1729407032492,-277.32,0.00022994,2]
[340519766,1729407032501,-304.04,0.00023008,2]
[340519767,1729407032511,-562.06,0.00023008,2]
[340519768,1729407032520,-200.0,0.00023115,2]
[340519769,1729407032529,-1906.16,0.00023115,2]
[340519770,1729407032539,-854.95,0.00023118,2]
[340519771,1729407032547,-181.47,0.00023122,2]
[340519772,1729407032556,-295.72,0.00023315,2]
[340519773,1729407032565,-250.0,0.00023324,2]
[340519774,1729407032574,-150.0,0.00023342,2]
[340519775,1729407032583,-606.3,0.00023359,2]
[340519776,1729407032592,-1852.42,0.0002336,2]
[340519777,1729407032601,-1000.0,0.00023406,2]
[340519779,1729407032610,-811.79,0.00023598,2]
[340519781,1729407032619,-201.57,0.00023784,2]
[340519783,1729407032627,-171.67,0.0002387,2]
[340519784,1729407032636,-160.9,0.00023944,2]
[340519785,1729407032645,-596.48832832,0.00024,2]
[340519786,1729407032657,-3.51167168,0.00024,2]
[340519787,1729407032666,-500.0,0.00024658,7]
[340519788,1729407032675,-212.1241527,0.0002483,2]
[340519789,1729407032683,-622.84197562,0.0002483,2]
[340519790,1729407032694,-1403.75332278,0.0002483,2]
[340519791,1729407032705,-1863.15207544,0.0002483,2]
[340519802,1729407038232,-150.0,0.00011989,2]
[340519803,1729407038243,-965.85751478,0.0002483,2]
[340519804,1729407038596,-1150.61,0.0002483,2]
[340519813,1729407040343,-760.35371138,0.0002483,2]
[340519814,1729407040353,-2500.0,0.0002483,2]
[340519815,1729407040363,-1000.0,0.0002483,2]
[340519816,1729407040372,-266.746,0.00024831,8]
[340519817,1729407040383,-151.41,0.00024877,30]
[340519818,1729407040392,-1013.22,0.000249,2]
[340519819,1729407040402,-366.94,0.00024919,3]
[340519820,1729407040411,-4434.2302885,0.0002492,4]
[340519821,1729407040427,-681.26488617,0.0002492,4]
[340519822,1729407040438,-1010.205,0.0002492,4]
[340519823,1729407040530,-2712.20589371,0.0002492,4]
[340519825,1729407040542,-2361.52252072,0.0002492,4]
[340519827,1729407040551,-1018.12987174,0.00024921,4]
[340519828,1729407040560,-1444.90729489,0.00024921,4]
[340519831,1729407043226,-6040.0,0.00024921,4]
[340519832,1729407043254,-468.46814776,0.00024921,4]
[340519833,1729407043283,-191.66353127,0.00024921,4]
[340519834,1729407043292,-154.31,0.00024921,2]
[340519835,1729407043302,-10936.83476585,0.00024929,16]
[340519836,1729407043313,-1162.3571244,0.00024929,2]
[340519837,1729407043323,-6344.93409565,0.00024929,2]
[340519838,1729407043334,-295.86000036,0.00024929,2]
[340519839,1729407043471,-12431.61514992,0.00024929,2]
[340519840,1729407043483,-259.4880914,0.00024929,2]
[340519841,1729407043497,-1979.18188074,0.00024929,2]
[340519844,1729407046323,-250.10479714,0.00024829,2]
[340519845,1729407046336,-9788.87960286,0.00024829,2]
[340519846,1729407046348,-2392.57082031,0.00024929,2]
[340519847,1729407046360,-282.58601024,0.00024929,2]
[340519848,1729407046526,-2244.35403628,0.00024929,2]
[340519849,1729407046538,-2763.82186365,0.00024929,2]
[340519850,1729407046554,-64002.02207683,0.00024929,2]
[340519887,1729407519370,161.84,0.000125,3]
[340519999,1729408232331,-150.0,0.00010949,2]
[340520000,1729408232341,-244.97,0.00010959,2]
[340520001,1729408232350,-50.67999998,0.00010959,2]
[340520002,1729408232574,-119.64000002,0.00010959,2]
[340520003,1729408232584,-300.0,0.00019725,2]
[340520004,1729408232593,-83.26722893,0.00021217,2]
[340520005,1729408232711,-647.34277107,0.00021217,2]
[340520007,1729408232720,-179.48,0.00022933,2]
[340520009,1729408232730,-155.05,0.00022934,2]
[340520011,1729408232739,-200.0,0.00022944,2]
[340520013,1729408232748,-250.0,0.00022954,2]
[340520015,1729408232757,-250.0,0.00022972,2]
[340520016,1729408232766,-250.0,0.00023014,2]
[340520017,1729408232775,-116.03652197,0.00023014,2]
[340520021,1729408238474,-998.49347803,0.00023014,2]
[340520022,1729408238484,-219.67577258,0.00023029,2]
[340520023,1729408238494,-150.0,0.0002303,2]
[340520024,1729408238506,-171.67,0.00023159,2]
[340520025,1729408238516,-427.47,0.00023265,2]
[340520026,1729408238526,-1000.0,0.00023331,2]
[340520027,1729408238535,-859.7,0.0002337,2]
[340520028,1729408238546,-301.34,0.0002337,2]
[340520029,1729408238556,-150.0,0.0002337,2]
[340520030,1729408238565,-300.0,0.0002337,2]
[340520031,1729408238574,-150.0,0.0002337,2]
[340520032,1729408238584,-300.0,0.0002337,2]
[340520033,1729408238593,-300.0,0.0002337,2]
[340520034,1729408238602,-643.73174418,0.00023481,2]